bitfinex/quotes_ETHUSD_20250616
["timestamp","ask_amount","ask_price","bid_price","bid_amount"]
[1750039519395,0.1936,2572.7,2572.4,0.03886883]
[1750039519598,0.1936,2572.7,2572.4,0.88459171]
[1750039519801,0.8136,2573.1,2572.4,0.88459171]
[1750039520097,0.8136,2573.1,2572.4,1.07819171]
[1750039520098,0.1936,2572.9,2572.4,1.07819171]
[1750039520491,0.01,2573.9,2572.5,6.42434469]
[1750039520492,0.8136,2573.6,2572.5,6.42434469]
[1750039520664,0.8136,2573.6,2572.6,12.87024231]
[1750039520864,0.8136,2573.6,2572.7,0.03885754]
[1750039521190,0.8136,2573.6,2572.8,6.913]
[1750039521392,0.8136,2573.6,2572.9,10.03885845]
[1750039521565,0.8136,2573.6,2573.0,0.03885845]
[1750039521762,0.8136,2573.6,2573.0,1.637681]
[1750039522113,0.8126,2573.9,2573.1,4.71726178]
[1750039522325,0.8126,2573.9,2573.2,0.03885406]
[1750039522612,0.01,2573.9,2573.3,9.53681899]
[1750039522779,0.01,2573.9,2573.4,0.71076]
[1750039522965,0.7633,2573.8,2573.0,8.51082255]
[1750039523166,0.7633,2573.8,2573.0,6.912]
[1750039523361,0.7633,2573.8,2573.1,0.03885952]
[1750039523566,0.01,2573.9,2573.2,0.7991]
[1750039523926,0.01,2573.9,2573.3,0.03885162]
[1750039525170,0.8119,2573.8,2573.3,6.911]
[1750039525527,0.8119,2573.8,2573.4,0.6911]
[1750039525800,0.01,2573.9,2573.5,0.03885252]
[1750039527273,0.01,2573.9,2573.4,1.85202732]
[1750039527528,0.01,2573.9,2573.5,0.03885107]
[1750039527831,0.01,2573.9,2573.4,1.85202732]
[1750039528111,0.7988,2573.8,2573.5,7.78630273]
[1750039528812,0.01,2573.9,2573.6,0.03885204]
[1750039529105,0.01,2573.9,2573.6,0.03885003]
[1750039529269,0.01,2573.9,2573.5,7.78630273]
[1750039530606,0.01,2573.9,2573.5,0.1936]
[1750039530814,0.1936,2573.5,2572.8,0.1936]
[1750039530987,0.1936,2573.3,2573.1,6.91]
[1750039531512,0.1936,2573.3,2573.1,7.60488615]
[1750039531716,0.01,2573.9,2573.2,0.8027]
[1750039531879,0.2036,2573.9,2573.4,0.1936]
[1750039532393,0.2036,2573.9,2573.5,0.03885197]
[1750039532596,0.2036,2573.9,2573.4,0.1936]
[1750039532818,0.2036,2573.9,2573.5,0.038852]
[1750039533114,0.2036,2573.9,2573.4,1.39270189]
[1750039533499,0.1936,2573.6,2573.4,6.909]
[1750039534839,0.2036,2573.9,2573.5,0.03885607]
[1750039535023,0.2036,2573.9,2573.4,7.8933]
[1750039535334,0.1936,2573.4,2572.8,0.1936]
[1750039535536,1.98,2573.6,2572.9,6.909]
[1750039535704,0.1936,2573.3,2572.9,6.94786151]
[1750039535898,0.1936,2573.3,2572.9,6.909]
[1750039536097,0.804,2573.8,2573.0,0.74912151]
[1750039536303,0.804,2573.8,2573.0,1.10173928]
[1750039537105,0.804,2573.8,2573.0,1.14059716]
[1750039538708,0.804,2573.8,2573.0,1.10173928]
[1750039538905,0.804,2573.8,2573.0,0.39147928]
[1750039539132,0.804,2573.8,2573.1,6.909]
[1750039540525,0.01,2573.9,2573.3,0.7706]
[1750039540722,0.01,2573.9,2573.4,0.03885005]
[1750039542312,0.01,2573.9,2573.3,0.7706]
[1750039542545,0.01,2573.9,2573.4,1.22790896]
[1750039544306,0.01,2573.9,2573.4,6.94685356]
[1750039544509,0.01,2573.9,2573.4,6.908]
[1750039545433,0.01,2573.9,2573.1,1.11998867]
[1750039545638,0.01,2573.9,2573.3,6.908]
[1750039546157,0.1936,2573.6,2573.3,6.908]
[1750039546509,0.9931,2573.6,2573.3,6.908]
[1750039546812,0.9931,2573.6,2573.3,7.62204559]
[1750039547559,0.7995,2573.6,2573.2,6.94585584]
[1750039547859,0.1936,2573.5,2573.2,6.94585584]
[1750039548415,2.752,2573.9,2573.2,6.94585584]
[1750039548616,0.1936,2573.6,2573.3,6.907]
[1750039548924,0.1936,2573.3,2573.0,0.38914442]
[1750039549123,0.1936,2573.3,2572.9,6.94586139]
[1750039549457,0.763,2573.2,2572.7,1.11998867]
[1750039549749,0.1936,2573.1,2572.7,0.3939704]
[1750039549955,0.1936,2573.1,2572.6,0.1936]
[1750039552243,2.1736,2573.1,2572.6,0.1936]
[1750039553316,0.8225,2573.0,2572.2,1.11998867]
[1750039553522,0.1936,2572.6,2572.3,6.94587141]
[1750039553835,0.1936,2572.6,2572.3,7.77181742]
[1750039555617,0.8225,2573.0,2572.3,8.15940647]
[1750039555936,0.1936,2572.9,2572.5,0.1936]
[1750039558413,0.8225,2573.0,2572.4,0.03886676]
[1750039558618,0.1936,2572.7,2572.4,0.03886676]
[1750039558852,0.1936,2572.7,2572.4,0.93416694]
[1750039559236,0.8225,2573.0,2572.3,7.29458905]
[1750039559431,0.1936,2572.6,2572.3,7.3334604]
[1750039559831,2.8005,2573.0,2572.3,0.4264604]
[1750039560039,2.9941,2573.0,2572.5,0.1936]
[1750039560246,2.9941,2573.0,2572.6,0.03886599]
[1750039560457,3.29351,2573.0,2572.5,0.1936]
[1750039560642,0.1936,2572.5,2571.9,0.1944]
[1750039560869,0.1936,2572.2,2571.6,0.1944]
[1750039561025,1.978,2572.2,2571.4,7.14028333]
[1750039561225,0.1944,2571.8,2571.5,0.82611729]
[1750039561466,0.7906,2571.7,2571.5,7.73311729]
[1750039561669,0.985,2571.7,2571.5,7.73311729]
[1750039561968,0.985,2571.7,2571.5,0.82611729]
[1750039562330,0.985,2571.7,2571.4,7.49401635]
[1750039562526,4.39741,2573.0,2571.5,10.83998439]
[1750039562527,0.7524,2572.9,2571.5,10.83998439]
[1750039562731,0.1936,2572.7,2572.2,0.1936]
[1750039562931,0.1936,2572.7,2572.2,7.0996]
[1750039563173,2.7304,2572.9,2571.8,6.906]
[1750039563174,0.7524,2572.6,2571.8,6.906]
[1750039563473,0.1944,2571.7,2571.4,0.39261635]
[1750039563636,0.1944,2571.7,2571.2,0.23328517]
[1750039563826,0.1944,2571.7,2571.2,1.02732369]
[1750039565272,0.1944,2571.7,2571.2,0.98843852]
[1750039565473,0.8107,2571.8,2571.2,0.51906654]
[1750039565658,0.1944,2571.4,2571.2,0.32466654]
[1750039565863,0.1944,2571.4,2571.2,0.71219792]
[1750039566176,0.8107,2571.8,2571.2,0.71219792]
[1750039566177,0.1944,2571.6,2571.3,0.03888911]
[1750039566551,1.978,2572.1,2571.3,10.40943802]
[1750039566753,1.978,2572.1,2571.4,1.2353438]
[1750039566754,0.1944,2571.9,2571.4,1.2353438]
[1750039567064,0.1944,2571.9,2571.5,0.03888241]
[1750039567438,0.1944,2571.9,2571.5,0.63888241]
[1750039568654,1.978,2572.0,2571.5,0.63888241]
[1750039568851,0.1944,2572.0,2571.6,6.907]
[1750039569053,0.7845,2572.7,2571.9,4.65715804]
[1750039569365,0.9781,2572.7,2572.1,3.88786816]
[1750039569568,0.9781,2572.7,2572.2,7.13946988]
[1750039569869,0.9781,2572.7,2572.2,0.23246988]
[1750039570068,0.9781,2572.7,2572.1,0.1936]
[1750039570069,0.1936,2572.5,2572.1,0.1936]
[1750039570281,0.1936,2572.5,2572.2,0.03887248]
[1750039570796,0.7845,2572.7,2572.1,0.98057]
[1750039570797,0.7845,2572.7,2572.1,0.78697]
[1750039570946,0.7845,2572.7,2572.4,0.1936]
[1750039571146,0.7845,2572.7,2572.2,6.906]
[1750039571371,0.1936,2572.6,2572.2,6.906]
[1750039571560,0.1936,2572.6,2572.3,0.03887139]
[1750039571756,0.1936,2572.6,2572.3,0.71384714]
[1750039571958,0.1936,2572.9,2572.5,0.1936]
[1750039572251,1.978,2573.3,2572.5,0.9538]
[1750039572456,2.1716,2573.3,2572.8,0.1936]
[1750039572989,0.8095,2573.6,2572.9,0.03886173]
[1750039573188,1.0031,2573.6,2573.2,0.1936]
[1750039573362,1.0031,2573.6,2572.5,1.50271893]
[1750039573550,1.0031,2573.6,2572.5,0.38300241]
[1750039573749,1.0031,2573.6,2572.3,7.61984714]
[1750039574200,1.0031,2573.6,2572.4,6.906]
[1750039574383,0.7948,2573.4,2572.3,6.906]
[1750039574567,0.7948,2573.4,2571.9,0.7793]
[1750039574902,0.7948,2573.4,2571.9,1.16327588]
[1750039575085,0.7948,2573.2,2572.0,6.905]
[1750039575252,1.978,2573.1,2572.1,0.84570188]
[1750039575453,0.7948,2573.0,2572.1,0.84570188]
[1750039576793,1.978,2572.9,2572.3,7.19126496]
[1750039576998,1.978,2572.9,2572.2,0.7842]
[1750039577364,1.978,2572.8,2572.4,0.6]
[1750039577564,0.7948,2573.0,2572.4,0.6]
[1750039577771,1.978,2572.9,2572.5,0.78301344]
[1750039577955,0.7948,2573.0,2572.6,0.03886531]
[1750039578468,1.978,2573.2,2572.6,0.03886531]
[1750039578668,2.754,2573.3,2572.7,0.7625]
[1750039579894,0.776,2573.2,2572.4,0.6]
[1750039580071,0.776,2573.0,2572.2,7.6665]
[1750039580272,0.776,2573.0,2572.3,0.03886945]
[1750039580657,1.978,2572.9,2572.3,0.03886945]
[1750039581498,1.978,2572.9,2572.1,1.92806496]
[1750039581670,0.7552,2572.8,2572.1,7.71082759]
[1750039581872,0.7552,2572.8,2571.9,1.13507588]
[1750039582075,0.7552,2572.8,2572.0,6.903]
[1750039582593,0.01,2573.9,2572.8,10.0]
[1750039582793,0.01,2573.9,2573.1,3.88623328]
[1750039582998,0.01,2573.9,2573.2,0.03885357]
[1750039583179,0.01,2573.9,2573.2,2.57893157]
[1750039583387,0.01,2573.9,2573.5,0.1936]
[1750039583727,0.01,2573.9,2573.6,0.03885055]
[1750039584268,0.01,2573.9,2573.8,0.1936]
[1750039584493,0.01,2573.9,2573.8,0.23244308]
[1750039584688,0.01,2573.9,2573.8,4.5295371]
[1750039585120,0.01,2573.9,2573.8,14.5295371]
[1750039585325,0.01,2573.9,2573.8,20.13408357]
[1750039586920,0.01,2573.9,2573.8,10.60538825]
[1750039587079,0.01,2573.9,2573.8,10.1936]
[1750039587817,0.00840001,2574.0,2573.9,10.7956]
[1750039587983,0.026,2574.8,2574.6,0.7956]
[1750039588330,0.005,2576.0,2574.2,10.0]
[1750039588331,0.8141,2578.4,2576.6,0.55]
[1750039588543,0.8141,2577.6,2576.8,6.19338955]
[1750039588859,0.8141,2577.6,2576.6,7.016]
[1750039589169,0.8141,2577.6,2576.8,3.88078236]
[1750039589532,0.01,2577.9,2576.8,21.73318557]
[1750039589817,0.01,2577.9,2576.8,21.69238236]
[1750039590155,0.01,2577.9,2576.8,23.67773365]
[1750039590411,0.01,2577.9,2576.8,23.67573365]
[1750039590597,2.041,2577.9,2576.8,21.69038236]
[1750039590783,0.01,2577.9,2576.8,21.69038236]
[1750039590989,2.041,2577.9,2576.8,21.69038236]
[1750039591312,2.031,2577.8,2576.8,7.015]
[1750039591513,0.8141,2577.2,2576.7,7.015]
[1750039592030,0.8141,2577.2,2576.1,10.0]
[1750039592031,2.8451,2577.2,2576.1,10.0]
[1750039592230,2.8451,2577.2,2576.0,0.38963361]
[1750039592378,2.8451,2577.2,2576.2,7.016]
[1750039592718,2.8451,2577.2,2576.2,7.014]
[1750039592719,2.031,2576.8,2576.2,7.014]
[1750039592876,0.2041,2576.7,2575.5,0.7583]
[1750039593087,0.8001,2576.6,2575.6,17.011]
[1750039593305,0.8001,2576.6,2575.6,7.39242794]
[1750039593504,0.8001,2576.6,2575.6,0.38142794]
[1750039593781,0.8001,2576.6,2575.7,7.04981564]
[1750039594004,0.8001,2576.6,2576.0,10.0]
[1750039594235,0.8001,2576.6,2575.5,0.7583]
[1750039594236,0.8001,2576.6,2576.1,7.04680866]
[1750039594442,0.8001,2576.6,2576.1,7.006]
[1750039594846,0.8001,2576.6,2575.6,0.38570578]
[1750039594847,0.8001,2576.6,2576.0,7.008]
[1750039595018,0.8001,2576.6,2576.1,0.35099396]
[1750039595206,2.031,2576.5,2576.2,0.35100505]
[1750039595406,2.031,2576.5,2576.1,0.03881743]
[1750039595718,0.8001,2576.6,2576.1,0.03881743]
[1750039595920,0.01,2576.9,2576.2,0.35097702]
[1750039596121,0.01,2576.9,2576.0,7.008]
[1750039596622,0.01,2576.9,2576.1,0.35096621]
[1750039596938,0.01,2576.9,2576.0,7.008]
[1750039597135,0.29516,2576.9,2576.1,0.03881092]
[1750039597449,0.01,2576.9,2576.2,5.64338955]
[1750039598307,0.01,2576.9,2576.3,0.35086566]
[1750039598634,0.01,2576.9,2576.2,5.64338955]
[1750039598849,0.01,2576.9,2576.5,0.1936]
[1750039599150,0.01,2576.9,2576.6,0.35076919]
[1750039599316,0.01,2576.9,2576.5,7.2086]
[1750039599645,0.01,2576.9,2576.5,7.015]
[1750039599844,0.2036,2576.9,2576.5,7.015]
[1750039600153,0.2036,2576.9,2576.5,7.05380718]
[1750039600482,0.01,2576.9,2576.6,5.64338955]
[1750039600946,0.01,2576.9,2576.8,0.1936]
[1750039601762,0.01,2576.9,2576.3,0.7957]
[1750039601966,0.1936,2576.7,2576.4,7.1876]
[1750039602162,0.1936,2576.7,2576.5,0.35096393]
[1750039602362,0.1936,2576.7,2576.6,0.35091397]
[1750039602679,0.1936,2576.7,2576.6,0.35091299]
[1750039602823,0.1936,2576.7,2575.6,6.02979534]
[1750039602824,0.01,2576.9,2576.2,6.993]
[1750039603027,0.1936,2576.4,2576.3,0.35107112]
[1750039603247,0.1936,2576.4,2576.1,6.992]
[1750039604008,0.1936,2576.4,2576.1,0.0388138]
[1750039604205,0.1936,2576.4,2576.0,0.1936]
[1750039604416,0.7752,2576.5,2575.6,0.38640579]
[1750039604574,0.1936,2576.0,2575.7,6.985]
[1750039604778,0.1936,2576.0,2575.6,0.39783149]
[1750039604982,0.7752,2576.5,2575.5,0.1936]
[1750039605296,0.1936,2575.9,2575.5,0.1936]
[1750039605598,0.1936,2575.9,2575.5,0.71776]
[1750039605806,0.1936,2575.9,2575.5,0.75658193]
[1750039606014,0.1936,2575.9,2575.5,0.71776]
[1750039606160,0.1936,2575.9,2575.5,0.75658298]
[1750039606356,0.1936,2575.9,2575.5,0.71776]
[1750039606676,0.1936,2575.9,2575.7,0.6]
[1750039607670,0.7608,2575.8,2575.4,6.973]
[1750039607860,0.7608,2575.8,2575.4,8.06953719]
[1750039608394,0.1936,2575.9,2575.5,0.0388231]
[1750039608694,0.1936,2575.9,2575.4,8.06953719]
[1750039608860,2.03,2576.1,2575.4,8.06953719]
[1750039608861,0.1936,2575.7,2575.4,8.06953719]
[1750039609267,2.03,2576.1,2575.4,0.37987719]
[1750039609467,0.1936,2575.5,2575.1,0.23242758]
[1750039609911,0.1936,2575.5,2575.1,0.1936]
[1750039611514,0.7794,2576.0,2575.2,5.682217]
[1750039611715,0.973,2576.0,2575.4,0.1936]
[1750039611916,0.973,2576.0,2575.5,7.0008202]
[1750039612124,0.973,2576.0,2575.6,0.71944202]
[1750039612283,2.03,2576.5,2575.7,0.03882021]
[1750039612485,0.7818,2576.4,2575.7,0.03882021]
[1750039613515,0.7818,2576.4,2575.6,6.36283157]
[1750039613888,0.7818,2576.4,2575.6,0.71944202]
[1750039614089,0.7818,2576.4,2575.2,6.03686225]
[1750039614090,1.06298,2576.4,2575.7,6.953]
[1750039614612,0.7507,2576.3,2575.2,0.3934727]
[1750039614817,0.7507,2576.3,2574.9,5.64338955]
[1750039615032,0.7507,2576.3,2575.1,6.95]
[1750039615201,0.7507,2576.3,2574.7,0.7547]
[1750039615529,40.0,2575.8,2574.1,0.60487723]
[1750039615742,0.7507,2575.5,2574.1,0.32430076]
[1750039615892,30.0,2575.3,2574.1,0.32430076]
[1750039616086,0.7507,2575.2,2574.2,0.0388457]
[1750039617015,0.7507,2575.2,2574.4,0.6]
[1750039618236,1.02877,2575.2,2574.4,0.6]
[1750039618592,1.02877,2575.2,2574.2,0.38747123]
[1750039618811,1.02877,2575.2,2574.1,0.03884175]
[1750039620130,0.7521,2575.1,2573.5,1.11629223]
[1750039620349,0.7521,2575.1,2573.6,7.83209964]
[1750039620709,0.7521,2575.1,2574.2,5.64338955]
[1750039620939,0.7521,2575.1,2574.6,5.64338955]
[1750039621141,0.7521,2575.1,2574.0,1.11629223]
[1750039621348,0.7521,2575.1,2574.1,0.03884262]
[1750039621565,2.0,2575.0,2573.9,5.68223215]
[1750039621733,2.0,2575.0,2574.0,1.75610244]
[1750039621918,2.0,2575.0,2574.1,0.63884262]
[1750039622256,0.7521,2575.1,2574.1,0.63884262]
[1750039622559,0.1936,2574.5,2574.1,0.63884262]
[1750039622850,0.8013,2574.4,2573.9,0.03884335]
[1750039623359,2.0,2574.5,2573.9,0.60706664]
[1750039623676,2.0,2574.5,2574.2,0.1936]
[1750039623981,0.1936,2574.6,2574.2,0.1936]
[1750039624339,0.1936,2574.6,2574.3,0.03884062]
[1750039624540,0.1936,2574.6,2574.2,0.1936]
[1750039626074,0.1936,2574.5,2574.0,0.1936]
[1750039626645,0.9661,2575.1,2574.4,0.1936]
[1750039626886,2.8108,2575.4,2574.7,5.64338955]
[1750039627097,2.8108,2575.4,2575.0,0.1936]
[1750039627098,0.8108,2575.4,2575.0,0.1936]
[1750039627306,2.8108,2575.9,2575.1,5.68221736]
[1750039627587,0.1936,2575.8,2575.3,0.1936]
[1750039627817,2.8108,2575.9,2575.4,0.03882317]
[1750039627975,0.8108,2575.9,2575.5,0.1936]
[1750039628146,0.8108,2575.9,2575.5,0.23242033]
[1750039628347,2.0,2576.1,2575.5,5.68220988]
[1750039628550,2.0,2576.1,2575.7,0.1936]
[1750039628788,0.9857,2576.2,2575.8,0.03881732]
[1750039629782,0.7921,2576.2,2575.8,0.03881732]
[1750039630000,2.9857,2576.6,2576.1,0.1936]
[1750039630680,2.9857,2576.6,2576.2,0.03881097]
[1750039631414,2.9857,2576.6,2576.1,0.1936]
[1750039632506,2.7921,2576.6,2575.8,0.39790253]
[1750039632705,0.1936,2576.4,2575.9,0.1936]
[1750039633120,0.1936,2576.4,2576.0,0.03881429]
[1750039633402,0.1936,2576.4,2575.9,0.1936]
[1750039634925,0.1936,2576.0,2575.8,0.3855325]
[1750039635220,0.1936,2576.0,2575.7,0.03881972]
[1750039635620,0.1936,2576.0,2575.5,7.1006]
[1750039635621,0.1936,2576.0,2575.5,0.1936]
[1750039635824,0.979,2576.0,2575.5,0.1936]
[1750039636199,0.7854,2576.0,2575.3,6.907]
[1750039636398,0.1936,2575.8,2575.3,7.92331217]
[1750039636624,0.1936,2575.8,2575.4,0.03882348]
[1750039637586,0.8074,2576.5,2575.7,3.88243972]
[1750039637829,0.8074,2576.5,2575.9,5.64338955]
[1750039638010,0.8074,2576.5,2575.9,12.54738955]
[1750039638190,0.8074,2576.5,2576.0,1.29355127]
[1750039638691,0.8074,2576.5,2576.1,0.03881231]
[1750039639108,13.2,2576.7,2576.1,0.03881231]
[1750039639311,13.2,2576.7,2576.0,1.25473896]
[1750039639512,13.2,2576.7,2576.0,1.63638689]
[1750039639736,13.2,2576.7,2576.1,1.41837764]
[1750039640409,13.2,2576.7,2576.2,0.03881096]
[1750039640615,13.2,2576.7,2576.0,0.03881097]
[1750039640815,0.8074,2576.8,2576.1,4.67855512]
[1750039641028,2.01,2576.9,2576.3,5.64338955]
[1750039641676,0.01,2576.9,2576.7,5.64338955]
[1750039641832,0.01,2576.9,2576.8,0.03880267]
[1750039642035,0.01,2576.9,2576.6,6.899]
[1750039642036,0.01,2576.9,2576.4,10.0]
[1750039642246,0.01,2576.9,2576.5,6.899]
[1750039642449,0.01,2576.9,2576.5,6.93780216]
[1750039643246,0.01,2576.9,2576.4,10.0]
[1750039643450,0.01,2576.9,2576.6,6.899]
[1750039643986,0.8351,2576.9,2576.1,0.7968]
[1750039644150,0.03421345,2576.8,2576.0,0.38895517]
[1750039644334,0.03421345,2576.8,2576.0,6.899]
[1750039644537,1.999,2576.7,2576.1,0.03881282]
[1750039645247,2.28241,2576.7,2576.0,6.899]
[1750039645564,0.03421345,2576.6,2576.0,6.899]
[1750039645864,0.03421345,2576.6,2576.0,0.37991019]
[1750039646080,0.03421345,2576.6,2576.0,6.898]
[1750039646282,0.7981,2576.5,2576.0,6.898]
[1750039646442,0.03421345,2576.4,2575.6,5.64338955]
[1750039646661,0.03421345,2576.4,2575.7,7.22209931]
[1750039646863,0.03421345,2576.4,2575.8,0.92408673]
[1750039647279,0.03421345,2576.4,2575.8,0.96290378]
[1750039647602,0.03421345,2576.4,2575.8,0.92408673]
[1750039647762,0.1936,2576.2,2575.8,0.96290378]
[1750039647952,2.1926,2576.1,2575.8,1.30838962]
[1750039648285,0.80971345,2576.0,2575.3,0.82271217]
[1750039648470,0.1936,2575.8,2575.3,7.0916]
[1750039648872,0.1936,2575.8,2575.3,0.1936]
[1750039649290,0.80971345,2576.0,2575.0,6.898]
[1750039649487,0.1936,2575.5,2575.0,7.0916]
[1750039649654,0.1936,2575.5,2575.0,7.41578742]
[1750039649858,0.1936,2575.5,2575.0,0.51778742]
[1750039650073,2.1686,2575.5,2575.0,0.51778742]
[1750039650460,2.1686,2575.5,2575.0,0.89765874]
[1750039650662,0.7842,2575.4,2575.0,0.89765874]
[1750039650962,0.1936,2575.1,2575.0,0.70405874]
[1750039651162,0.1936,2575.1,2575.0,0.32418742]
[1750039651395,0.1936,2575.1,2575.0,0.71921938]
[1750039651701,0.1936,2575.1,2575.0,0.32418742]
[1750039651874,2.1686,2575.1,2575.0,0.32418742]
[1750039652257,2.1686,2575.1,2574.7,0.03883354]
[1750039652458,0.7842,2575.4,2575.0,5.64338955]
[1750039652700,8.39,2577.4,2575.0,5.64338955]
[1750039652701,0.8101,2575.8,2575.1,0.60316607]
[1750039653002,0.1936,2576.1,2575.5,5.64338955]
[1750039653199,0.03421345,2576.1,2575.7,0.1936]
[1750039653389,0.03421345,2576.1,2575.2,3.88313708]
[1750039653390,0.1936,2575.9,2575.5,0.1936]
[1750039653561,0.1936,2575.9,2575.6,0.03882102]
[1750039654965,0.8101,2576.2,2575.6,0.03882102]
[1750039654966,1.975,2576.1,2575.6,0.03882102]
[1750039655181,1.975,2576.1,2575.7,0.1936]
[1750039655377,1.975,2576.1,2575.8,0.03881785]
[1750039655763,0.1936,2576.2,2575.8,0.03881785]
[1750039656002,0.7826,2576.6,2576.0,0.1936]
[1750039656003,2.9512,2576.6,2576.0,0.1936]
[1750039656302,2.9512,2576.6,2576.1,0.03881257]
[1750039656904,0.03421345,2576.5,2576.0,0.1936]
[1750039657078,0.03421345,2576.5,2575.6,12.14862036]
[1750039657079,0.1936,2576.1,2575.7,0.1936]
[1750039657925,1.975,2576.2,2575.6,0.03881805]
[1750039658078,0.1936,2576.0,2575.6,0.03881805]
[1750039658278,0.1936,2576.0,2575.5,7.0916]
[1750039658577,0.03421345,2575.9,2575.2,1.11629223]
[1750039658895,0.1936,2575.6,2575.4,6.898]
[1750039659234,0.1936,2575.6,2575.1,0.1936]
[1750039659235,2.1686,2575.6,2575.1,0.1936]
[1750039659537,0.1936,2575.1,2574.7,0.38317556]
[1750039659739,0.1936,2575.1,2574.5,0.1936]
[1750039659740,0.86701345,2575.5,2574.8,0.03883223]
[1750039660034,0.1936,2575.2,2574.8,0.03883223]
[1750039660329,0.1936,2575.2,2574.8,0.03883236]
[1750039660922,0.1936,2575.2,2574.7,0.1936]
[1750039661235,0.1936,2575.2,2574.8,0.36304395]
[1750039661406,0.1936,2575.2,2574.8,0.74734386]
[1750039661612,0.1936,2575.2,2574.9,0.32420001]
[1750039662638,1.975,2575.5,2574.9,1.15730001]
[1750039662935,2.1686,2575.5,2575.0,0.1936]
[1750039663103,0.03421345,2575.4,2574.9,0.32420001]
[1750039663302,0.1936,2575.2,2574.9,0.32420001]
[1750039663698,0.7749,2575.1,2574.9,0.32420001]
[1750039663922,0.03421345,2575.0,2574.9,0.32420001]
[1750039664284,0.80911345,2575.0,2574.9,0.32420001]
[1750039664431,0.80911345,2575.0,2573.9,0.1936]
[1750039664432,0.1936,2574.9,2573.9,0.1936]
[1750039664632,8.873,2575.5,2573.9,0.1936]
[1750039664633,0.1936,2574.3,2574.0,0.32431336]
[1750039665237,1.976,2574.4,2574.0,0.32431336]
[1750039665432,0.1936,2574.1,2574.0,0.32431336]
[1750039666823,1.976,2574.4,2574.0,0.32431336]
[1750039667063,0.03421345,2574.3,2574.0,0.32431336]
[1750039668884,0.7783,2574.2,2574.0,0.32431336]
[1750039669567,0.7783,2574.2,2573.9,0.39864473]
[1750039669568,0.03421345,2574.1,2573.9,0.39864473]
[1750039669775,0.03421345,2574.1,2573.5,6.9]
[1750039669959,0.7783,2574.2,2573.6,0.03885014]
[1750039670157,0.7783,2574.2,2573.7,0.6]
[1750039670988,0.7783,2574.2,2573.7,0.98180113]
[1750039671188,1.976,2574.4,2573.8,0.03885014]
[1750039671397,0.8208,2574.7,2573.8,3.92413933]
[1750039671692,1.976,2574.5,2573.7,1.73568614]
[1750039671887,0.03421345,2574.4,2573.7,0.98180113]
[1750039672196,0.8208,2574.3,2573.7,0.98180113]
[1750039673140,0.03421345,2574.4,2573.7,0.98180113]
[1750039673141,2.01021345,2574.4,2573.7,0.98180113]
[1750039673341,1.976,2574.4,2573.8,0.83925074]
[1750039673787,11.199,2574.9,2574.1,3.88474878]
[1750039673996,1.976,2574.8,2574.2,0.81581429]
[1750039674346,2.01021345,2574.8,2574.2,0.77697527]
[1750039674666,2.01021345,2574.8,2574.1,6.9]
[1750039675637,0.1936,2574.4,2574.2,0.03884379]
[1750039675874,1.976,2574.7,2574.2,0.03884379]
[1750039676078,1.976,2574.7,2574.3,0.1936]
[1750039676270,1.976,2574.7,2574.4,0.0388384]
[1750039676645,1.976,2574.7,2574.3,0.1936]
[1750039676842,0.1936,2574.8,2574.4,0.03883865]
[1750039677047,2.1696,2574.8,2574.4,0.03883865]
[1750039677457,0.03421345,2574.7,2573.8,0.8004]
[1750039677648,0.1936,2574.4,2574.0,0.1936]
[1750039677857,0.1936,2574.4,2574.1,0.03884381]
[1750039678063,0.1936,2574.4,2574.0,0.7936]
[1750039678463,0.1936,2574.4,2574.1,0.03884382]
[1750039679565,0.1936,2574.4,2574.0,0.1936]
[1750039679770,0.1936,2574.6,2574.2,0.1936]
[1750039679976,0.1936,2574.5,2574.0,0.1936]
[1750039681297,11.199,2574.9,2574.2,3.88467224]
[1750039681474,0.7543,2575.2,2574.4,6.45408955]
[1750039681653,1.974,2575.5,2574.5,0.03883372]
[1750039681854,2.1714,2575.5,2574.5,1.46501144]
[1750039682094,0.1974,2575.5,2574.5,5.34924953]
[1750039682401,11.201,2575.9,2574.9,4.71233649]
[1750039682697,11.201,2575.9,2575.0,6.93782469]
[1750039682864,1.974,2576.0,2575.3,0.7618]
[1750039683063,1.974,2576.3,2575.4,0.03882011]
[1750039683263,1.974,2576.2,2575.4,0.03882011]
[1750039683461,1.974,2576.2,2575.4,1.45983874]
[1750039683660,1.974,2576.2,2575.6,9.52593677]
[1750039683863,1.974,2576.2,2575.7,0.03881578]
[1750039684294,1.974,2576.5,2575.8,3.88227912]
[1750039684517,1.974,2576.5,2575.9,0.8281119]
[1750039684711,0.82591345,2576.8,2575.9,0.8281119]
[1750039684712,0.03421345,2576.8,2576.0,9.52537402]
[1750039684981,11.211,2576.9,2576.1,0.03881135]
[1750039685696,13.185,2576.9,2576.0,12.54038955]
[1750039685894,11.211,2576.9,2576.0,16.42228414]
[1750039686219,0.03421345,2576.8,2575.9,0.7893]
[1750039686402,1.3561348,2576.8,2576.0,6.897]
[1750039686719,1.3561348,2576.8,2576.0,6.93581546]
[1750039687344,0.7876,2576.7,2575.6,0.7671]
[1750039687482,0.7876,2576.5,2575.4,0.39193415]
[1750039687682,0.7876,2576.5,2574.6,5.36060393]
[1750039687683,0.7876,2576.3,2574.9,0.7671]
[1750039687929,0.7876,2576.1,2574.9,0.7671]
[1750039688151,0.03421345,2576.0,2575.1,3.88330491]
[1750039688357,1.974,2576.0,2575.2,6.03560272]
[1750039688653,1.974,2576.0,2575.2,12.96942299]
[1750039688856,0.7586,2576.4,2575.6,5.64338955]
[1750039689000,0.7586,2576.4,2575.3,0.7687]